Workbook

Sheet Лист1
I1: к постановлению Администрации Североуральского городского округа от 13.06.2017 № 695
A2: Приложение № 2 к муниципальной программе Североуральского городского округа «Развитие жилищно-коммунального хозяйства и транспортного обслуживания населения, повышение энергетической эффективности и охрана окружающей среды в Североуральском городском округе» на 2014-2020 годы
A3: План мероприятий
A4: по выполнению муниципальной программы Североуральского городского округа
A5: «Развитие жилищно-коммунального хозяйства и транспортного обслуживания населения,
A6: повышение энергетической эффективности и охрана окружающей среды в Североуральском городском округе» на 2014-2020 годы
A8: № строки | B8: Наименование мероприятия/ Источники расходов на финансирование | C8: Объем расходов на выполнение мероприятия за счет всех источников ресурсного обеспечения, тыс. руб. | K8: Номер строки целевых показателей, на достижение которых направлены мероприятия
C9: Всего | D9: 2014 год | E9: 2015 год | F9: 2016 год | G9: 2017 год | H9: 2018 год | I9: 2019 год | J9: 2020 год
B10: 1 | C10: 2 | D10: 3 | E10: 4 | F10: 5 | G10: 6 | H10: 7 | I10: 8 | J10: 9 | K10: 10
A11: 1. | B11: ВСЕГО по муниципальной программе, в том числе: | C11: =SUM(C12:C14) -> 1154832.263 | D11: =SUM(D12:D14) -> 283826.9 | E11: =SUM(E12:E14) -> 348239.16 | F11: =SUM(F12:F14) -> 216622.5876 | G11: 96199.11501 | H11: 81381 | I11: 64762.4 | J11: 63801.1 | K11: Х
A12: 1.1. | B12: местный бюджет | C12: =SUM(D12:J12) -> 630987.8788 | D12: =SUM(D16+D20) -> 92792.8 | E12: =SUM(E16+E20) -> 126635.26 | F12: 117147.5734 | G12: 86401.94542 | H12: 80408.1 | I12: 63801.1 | J12: 63801.1
A13: 1.2. | B13: областной бюджет | C13: =SUM(D13:J13) -> 336388.1133 | D13: =SUM(D17+D21) -> 109216.1 | E13: =SUM(E17+E21) -> 135104.3 | F13: =SUM(F17+F21) -> 81477.35126 | G13: =SUM(G17+G21) -> 8656.162 | H13: =SUM(H17+H21) -> 972.9 | I13: =SUM(I17+I21) -> 961.3 | J13: =SUM(J17+J21) -> 0
A14: 1.3. | B14: федеральный бюджет | C14: =SUM(D14:J14) -> 187456.2705 | D14: =SUM(D22+D18) -> 81818 | E14: =SUM(E22+E18) -> 86499.6 | F14: 17997.66293 | G14: 1141.00759 | H14: 0 | I14: 0 | J14: 0
A15: 2. | B15: Капитальные вложения | C15: =SUM(C16:C18) -> 713146.7997 | D15: =SUM(D16:D18) -> 232761.9 | E15: =SUM(E16:E18) -> 271669 | F15: 133207.8847 | G15: 32210.21501 | H15: 23522.3 | I15: 19775.5 | J15: 0 | K15: Х
A16: 2.1. | B16: местный бюджет | C16: =SUM(D16:J16) -> 196542.4159 | D16: =D30+D132+D200+D220+D250+D283+D352+D371 -> 44727.8 | E16: 50411.3 | F16: 34707.97051 | G16: 23397.54542 | H16: 23522.3 | I16: 19775.5 | J16: 0
A17: 2.2. | B17: областной бюджет | C17: =SUM(D17:J17) -> 329148.1133 | D17: =D133+D221+D31 -> 106216.1 | E17: =E133+E221+E31 -> 134758.1 | F17: =F133+F221 -> 80502.25126 | G17: =G133+G221 -> 7671.662 | H17: =H133+H221 -> 0 | I17: =I133+I221 -> 0 | J17: =J133+J221 -> 0
A18: 2.3. | B18: федеральный бюджет | C18: =SUM(D18:J18) -> 187456.2705 | D18: =D222 -> 81818 | E18: =E222 -> 86499.6 | F18: 17997.66293 | G18: 1141.00759 | H18: 0 | I18: 0 | J18: 0
A19: 3. | B19: Прочие нужды | C19: =SUM(C20:C21) -> 441685.4629 | D19: =SUM(D20:D21) -> 51065 | E19: =SUM(E20:E21) -> 76570.16 | F19: 83414.70288 | G19: 63988.9 | H19: 57858.7 | I19: 44986.9 | J19: 63801.1 | K19: Х
A20: 3.1. | B20: местный бюджет | C20: =SUM(D20:J20) -> 434445.4629 | D20: =D57+D178+D209+D238+D292+D361+D387+D259+D340 -> 48065 | E20: 76223.96 | F20: 82439.60288 | G20: 63004.4 | H20: 56885.8 | I20: 44025.6 | J20: 63801.1
A21: 3.2. | B21: областной бюджет | C21: =SUM(D21:J21) -> 7240 | D21: =SUM(D179+D386+D58) -> 3000 | E21: 346.2 | F21: 975.1 | G21: 984.5 | H21: 972.9 | I21: 961.3 | J21: 0
A22: 3.3. | B22: федеральный бюджет | C22: =SUM(D22:J22) -> 0 | D22: 0 | E22: =E179 -> 0 | F22: 0 | G22: 0 | H22: 0 | I22: 0 | J22: 0
A23: 4. | B23: Подпрограмма 1: Комплексное благоустройство территории Североуральского городского округа
A24: 4.1. | B24: Всего по подпрограмме 1, | C24: =SUM(C26+C27) -> 187136.5414 | D24: =SUM(D26:D27) -> 25725.2 | E24: 29762.2 | F24: 47222.84145 | G24: 33128.5 | H24: 21980 | I24: 5241.3 | J24: 24076.5 | K24: Х
B25: в том числе:
A26: 4.2. | B26: местный бюджет | C26: =SUM(D26:J26) -> 178431.1414 | D26: =SUM(D30+D57) -> 24510.5 | E26: 26102.3 | F26: 46247.74145 | G26: 32165 | H26: 21028.1 | I26: 4301 | J26: 24076.5
A27: 4.3. | B27: областной бюджет | C27: =SUM(D27:J27) -> 8705.4 | D27: =SUM(D31+D58) -> 1214.7 | E27: 3659.9 | F27: 975.1 | G27: 963.5 | H27: 951.9 | I27: 940.3 | J27: 0
A28: 5. | B28: 1. Капитальные вложения
A29: 5.1. | B29: Всего по направлению «Капитальные вложения» всего, в том числе | C29: =SUM(D29:J29) -> 22491.9 | D29: =SUM(D30+D31) -> 3536.4 | E29: =SUM(E30+E31) -> 3674.7 | F29: =SUM(F30) -> 4819 | G29: =SUM(G30) -> 6715 | H29: =SUM(H30) -> 3746.8 | I29: =SUM(I30) -> 0 | J29: =SUM(J30) -> 0 | K29: Х
A30: 5.2. | B30: местный бюджет | C30: =SUM(D30:J30) -> 17963.5 | D30: =SUM(D41) -> 2321.7 | E30: =SUM(E41) -> 361 | F30: =SUM(F41) -> 4819 | G30: =SUM(G34+G37) -> 6715 | H30: 3746.8 | I30: 0 | J30: 0
A31: 5.3. | B31: областной бюджет | C31: =SUM(D31:J31) -> 4528.4 | D31: =SUM(D38) -> 1214.7 | E31: =SUM(E38) -> 3313.7 | F31: 0 | G31: =SUM(G38) -> 0 | H31: 0 | I31: 0 | J31: 0
A32: 6. | B32: 1.1. Бюджетные инвестиции в объекты капитального строительства
A33: 6.1. | B33: Бюджетные инвестиции в объекты капитального строительства всего, в том числе | C33: 0 | D33: 0 | E33: 0 | F33: 0 | G33: 0 | H33: 0 | I33: 0 | J33: 0 | K33: Х
A34: 6.2. | B34: местный бюджет | C34: 0 | D34: 0 | E34: 0 | F34: 0 | G34: 0 | H34: 0 | I34: 0 | J34: 0
A35: 7. | B35: 1.2. Иные капитальные вложения
A36: 7.1. | B36: Всего | C36: =SUM(D36:J36) -> 22491.9 | D36: =SUM(D37:D38) -> 3536.4 | E36: =SUM(E37:E38) -> 3674.7 | F36: 4819 | G36: 6715 | H36: 3746.8 | I36: 0 | J36: 0 | K36: Х
A37: 7.2. | B37: местный бюджет | C37: =SUM(D37:J37) -> 17963.5 | D37: =SUM(D41) -> 2321.7 | E37: =SUM(E41) -> 361 | F37: 4819 | G37: =SUM(G41+G45) -> 6715 | H37: 3746.8 | I37: 0 | J37: 0
A38: 7.3. | B38: областной бюджет | C38: =SUM(D38:J38) -> 4528.4 | D38: =SUM(D42) -> 1214.7 | E38: =SUM(E42) -> 3313.7 | F38: 0 | G38: =SUM(G42+G46) -> 0 | H38: 0 | I38: 0 | J38: 0
A39: 8. | B39: Мероприятие 1 Благоустройство дворовых территорий Североуральского городского округа
A40: 8.1. | B40: Всего, из них | C40: =SUM(D40:J40) -> 16256.9 | D40: =D41+D42 -> 3536.4 | E40: =SUM(E41:E42) -> 3674.7 | F40: =SUM(F41) -> 4819 | G40: =SUM(G41) -> 480 | H40: =SUM(H41) -> 3746.8 | I40: =SUM(I41) -> 0 | J40: =SUM(J41) -> 0 | K40: 4
A41: 8.2. | B41: местный бюджет | C41: =SUM(D41:J41) -> 11728.5 | D41: 2321.7 | E41: 361 | F41: 4819 | G41: 480 | H41: 3746.8 | I41: 0 | J41: 0
A42: 8.3. | B42: областной бюджет | C42: =D42+E42+F42+G42+H42+I42+J42 -> 4528.4 | D42: 1214.7 | E42: 3313.7 | F42: 0 | G42: 0 | H42: 0 | I42: 0 | J42: 0
A43: 9. | B43: Мероприятие 8 - Организация работ по благоустройству дворовых и общественных территорий в рамках реализации приоритетного проекта "Формирование комфортной городской среды" в Североуральском городском округе
A44: 9.1. | B44: Всего, из них | C44: =SUM(D44:J44) -> 6235 | D44: =SUM(D45:D46) -> 0 | E44: =SUM(E45:E46) -> 0 | F44: 0 | G44: 6235 | H44: 0 | I44: 0 | J44: 0 | K44: Х
A45: 9.2. | B45: местный бюджет | C45: =SUM(D45:J45) -> 6235 | D45: =SUM(D49+D53) -> 0 | E45: 0 | F45: 0 | G45: 6235 | H45: 0 | I45: 0 | J45: 0
A46: 9.3. | B46: областной бюджет | C46: =SUM(D46:J46) -> 0 | D46: 0 | E46: 0 | F46: 0 | G46: 0 | H46: 0 | I46: 0 | J46: 0
A47: 9.4. | B47: - Организация работ по благоустройству дворовых территории Североуральского городского округа
A48: 9.5. | B48: Всего: | C48: =SUM(D48:J48) -> 3095 | D48: =SUM(D49:D50) -> 0 | E48: 0 | F48: 0 | G48: 3095 | H48: 0 | I48: 0 | J48: 0 | K48: 4.1.
A49: 9.6. | B49: местный бюджет | C49: =SUM(D49:J49) -> 3095 | D49: 0 | E49: 0 | F49: 0 | G49: 3095 | H49: 0 | I49: 0 | J49: 0
A50: 9.7. | B50: областной бюджет | C50: =SUM(D50:J50) -> 0 | D50: 0 | E50: 0 | F50: 0 | G50: 0 | H50: 0 | I50: 0 | J50: 0
A51: 9.8. | B51: - Организация работ по благоустройству общественных территории Североуральского городского округа
A52: 9.9. | B52: Всего: | C52: =SUM(D52:J52) -> 3140 | D52: =SUM(D53:D54) -> 0 | E52: 0 | F52: 0 | G52: 3140 | H52: 0 | I52: 0 | J52: 0 | K52: 4.2.
A53: 9.10. | B53: местный бюджет | C53: =SUM(D53:J53) -> 3140 | D53: 0 | E53: 0 | F53: 0 | G53: 3140 | H53: 0 | I53: 0 | J53: 0
A54: 9.11. | B54: областной бюджет | C54: =SUM(D54:J54) -> 0 | D54: 0 | E54: 0 | F54: 0 | G54: 0 | H54: 0 | I54: 0 | J54: 0
A55: 10. | B55: 3. Прочие нужды
A56: 10.1. | B56: Всего по направлению «Прочие нужды», всего, в том числе: | C56: =SUM(D56:J56) -> 164644.6414 | D56: =SUM(D57:D58) -> 22188.8 | E56: 26087.5 | F56: 42403.84145 | G56: 26413.5 | H56: 18233.2 | I56: 5241.3 | J56: 24076.5 | K56: Х | N56: =SUM(E41+E61) -> 797
A57: 10.2. | B57: местный бюджет | C57: =SUM(D57:J57) -> 160467.6414 | D57: =SUM(D68+D77+D80+D83+D61+D124) -> 22188.8 | E57: =SUM(E68+E77+E80+E83+E61+E124) -> 25741.3 | F57: =SUM(F68+F77+F80+F83+F61+F124) -> 41428.74145 | G57: 25450 | H57: 17281.3 | I57: 4301 | J57: 24076.5
A58: 10.3. | B58: областной бюджет | C58: =SUM(D58:J58) -> 4177 | D58: =SUM(D84) -> 0 | E58: =SUM(E84) -> 346.2 | F58: =SUM(F125) -> 975.1 | G58: =SUM(G125) -> 963.5 | H58: =SUM(H125) -> 951.9 | I58: =SUM(I125) -> 940.3 | J58: =SUM(J125) -> 0
A59: 11. | B59: Мероприятие 1 Благоустройство дворовых территорий Североуральского городского округа
A60: 11.1. | B60: Всего, из них | C60: =SUM(D60:J60) -> 3427.9 | D60: =D61+D62 -> 310.9 | E60: =SUM(E61) -> 436 | F60: 2681 | G60: 0 | H60: 0 | I60: 0 | J60: 0 | K60: 4
A61: 11.2. | B61: местный бюджет | C61: =SUM(D61:J61) -> 3427.9 | D61: 310.9 | E61: 436 | F61: 2681 | G61: 0 | H61: =SUM(G61) -> 0 | I61: =SUM(H61) -> 0 | J61: =SUM(I61) -> 0
A62: 11.3. | B62: областной бюджет | C62: =D62+E62+F62+G62+H62+I62+J62 -> 0 | D62: 0 | E62: 0 | F62: 0 | G62: 0 | H62: 0 | I62: 0 | J62: 0
A63: 12. | B63: Мероприятие 2 Благоустройство парков и скверов в городе Североуральске
A64: 12.1. | B64: Всего, из них | C64: =SUM(D64:J64) -> 0 | D64: =D65+D66 -> 0 | E64: =SUM(E65) -> 0 | F64: 0 | G64: 0 | H64: 0 | I64: 0 | J64: 0 | K64: 5
A65: 12.2. | B65: местный бюджет | C65: =SUM(D65:J65) -> 0 | D65: 0 | E65: 0 | F65: 0 | G65: 0 | H65: =SUM(G65) -> 0 | I65: =SUM(H65) -> 0 | J65: =SUM(I65) -> 0
A66: 13. | B66: Мероприятие 3- Уличное освещение
A67: 13.1. | B67: Всего, в том числе: | C67: =SUM(D67:J67) -> 75356.4908 | D67: =SUM(D68) -> 12001 | E67: 12600 | F67: 18150.6908 | G67: 13000 | H67: 6404.8 | I67: 0 | J67: 13200 | K67: 8, 9
A68: 13.2. | B68: местный бюджет | C68: =SUM(D68:J68) -> 75356.4908 | D68: =SUM(D71+D74) -> 12001 | E68: 12600 | F68: 18150.6908 | G68: 13000 | H68: 6404.8 | I68: 0 | J68: 13200
A69: 13.3. | B69: - Обеспечение бесперебойной подачи электроэнергии
A70: 13.4. | B70: Всего: | C70: =SUM(D70:J70) -> 47709.5908 | D70: =SUM(D71) -> 8644.1 | E70: =SUM(E71) -> 8800 | F70: 10660.6908 | G70: 8000 | H70: 2404.8 | I70: 0 | J70: 9200 | K70: 8, 9
A71: 13.5. | B71: местный бюджет | C71: =SUM(D71:J71) -> 47709.5908 | D71: 8644.1 | E71: 8800 | F71: 10660.6908 | G71: 8000 | H71: 2404.8 | I71: 0 | J71: 9200
A72: 13.6. | B72: - Содержание и ремонт сетей уличного освещения
A73: 13.7. | B73: Всего: | C73: =SUM(D73:J73) -> 27646.9 | D73: =SUM(D74) -> 3356.9 | E73: =SUM(E74) -> 3800 | F73: 7490 | G73: 5000 | H73: 4000 | I73: 0 | J73: 4000 | K73: 8, 9
A74: 13.8. | B74: местный бюджет | C74: =SUM(D74:J74) -> 27646.9 | D74: 3356.9 | E74: 3800 | F74: 7490 | G74: 5000 | H74: 4000 | I74: 0 | J74: 4000
A75: 14. | B75: Мероприятие 4 - Озеленение (цветники, валка сухих деревьев)
A76: 14.1. | B76: Всего, из них | C76: =SUM(D76:J76) -> 20007.94386 | D76: =SUM(D77) -> 2890.9 | E76: 2148 | F76: 3923.84386 | G76: 3000 | H76: 3302.5 | I76: 1440.2 | J76: 3302.5 | K76: 11
A77: 14.2. | B77: местный бюджет | C77: =SUM(D77:J77) -> 20007.94386 | D77: 2890.9 | E77: 2148 | F77: 3923.84386 | G77: 3000 | H77: 3302.5 | I77: 1440.2 | J77: 3302.5
A78: 15. | B78: Мероприятие 5 - Организация и содержание мест захоронения
A79: 15.1. | B79: Всего, из них | C79: =SUM(D79:J79) -> 19771.84212 | D79: =SUM(D80) -> 2263.1 | E79: 2306.9 | F79: 3619.44212 | G79: 3000 | H79: 2860.8 | I79: 2860.8 | J79: 2860.8 | K79: 16
A80: 15.2. | B80: местный бюджет | C80: =SUM(D80:J80) -> 19771.84212 | D80: 2263.1 | E80: 2306.9 | F80: 3619.44212 | G80: 3000 | H80: 2860.8 | I80: =SUM(H80) -> 2860.8 | J80: =SUM(I80) -> 2860.8
A81: 16. | B81: Мероприятие 6 - Прочие мероприятия по благоустройству
A82: 16.1. | B82: Всего, в том числе: | C82: =SUM(D82:J82) -> 41302.86467 | D82: =SUM(D83:D84) -> 4722.9 | E82: =SUM(E83:E84) -> 8596.6 | F82: 12256.96467 | G82: 6300 | H82: 4713.2 | I82: 0 | J82: 4713.2 | K82: 5,6,11,13,14,15,17
A83: 16.2. | B83: местный бюджет | C83: =SUM(D83:J83) -> 40956.66467 | D83: =SUM(D87+D90+D97+D100+D109+D103+D112+D118+D106+D115+D93) -> 4722.9 | E83: =SUM(E87+E90+E97+E100+E109+E103+E112+E118+E106+E115+E93+E121) -> 8250.4 | F83: =SUM(F87+F90+F97+F100+F109+F103+F112+F118+F106+F115+F93+F121) -> 12256.96467 | G83: 6300 | H83: 4713.2 | I83: 0 | J83: 4713.2
A84: 16.3. | B84: областной бюджет | C84: =SUM(D84:J84) -> 346.2 | D84: =SUM(D94) -> 0 | E84: =SUM(E94) -> 346.2 | F84: 0 | G84: 0 | H84: 0 | I84: 0 | J84: 0
A85: 16.4. | B85: - Содержание памятников
A86: 16.5. | B86: Всего: | C86: =SUM(C87) -> 2440.40006 | D86: 369.2 | E86: 404.9 | F86: 384.30006 | G86: 400 | H86: 441 | I86: 0 | J86: 441 | K86: 17
A87: 16.6. | B87: местный бюджет | C87: =SUM(D87:J87) -> 2440.40006 | D87: 369.2 | E87: 404.9 | F87: 384.30006 | G87: 400 | H87: 441 | I87: 0 | J87: 441
A88: 16.7. | B88: - Проведение комплекса профилактических работ по уходу за объектами благоустройства
A89: 16.8. | B89: Всего: | C89: =SUM(C90) -> 6500.2138 | D89: =SUM(D90) -> 1098.7 | E89: =SUM(E90) -> 976.1 | F89: 999.8138 | G89: 1000 | H89: 1212.8 | I89: 0 | J89: 1212.8 | K89: 5
A90: 16.9. | B90: местный бюджет | C90: =SUM(D90:J90) -> 6500.2138 | D90: 1098.7 | E90: 976.1 | F90: 999.8138 | G90: 1000 | H90: 1212.8 | I90: 0 | J90: 1212.8
A91: 16.10. | B91: - Регулирование численности безнадзорных животных
A92: 16.11. | B92: Всего: | C92: =SUM(D92:J92) -> 1677.2 | D92: =SUM(D93:D94) -> 500 | E92: =SUM(E93:E94) -> 1177.2 | F92: 0 | G92: 0 | H92: 0 | I92: 0 | J92: 0 | K92: 13
A93: 16.12. | B93: местный бюджет | C93: =SUM(D93:J93) -> 1331 | D93: 500 | E93: 831 | F93: 0 | G93: 0 | H93: 0 | I93: =SUM(H93) -> 0 | J93: =SUM(I93) -> 0
A94: 16.13. | B94: областной бюджет | C94: =SUM(D94:J94) -> 346.2 | E94: 346.2
A95: 16.14. | B95: - Содержание биоямы (скотомогильник)
A96: 16.15. | B96: Всего: | C96: =SUM(C97) -> 673.22912 | D96: =SUM(D97) -> 116.1 | E96: =SUM(E97) -> 69.3 | F96: 77.02912 | G96: 80 | H96: 165.4 | I96: 0 | J96: 165.4 | K96: 15
A97: 16.16. | B97: местный бюджет | C97: =SUM(D97:J97) -> 673.22912 | D97: 116.1 | E97: 69.3 | F97: 77.02912 | G97: 80 | H97: 165.4 | I97: 0 | J97: 165.4
A98: 16.17. | B98: - Обустройство и эксплуатация новогодних городков
A99: 16.18. | B99: Всего: | C99: =SUM(C100) -> 14561.9 | D99: =SUM(D100) -> 1685.5 | E99: =SUM(E100) -> 2669.2 | F99: 2900 | G99: 2600 | H99: 2353.6 | I99: 0 | J99: 2353.6 | K99: 5
A100: 16.19. | B100: местный бюджет | C100: =SUM(D100:J100) -> 14561.9 | D100: 1685.5 | E100: 2669.2 | F100: 2900 | G100: 2600 | H100: 2353.6 | I100: 0 | J100: 2353.6
A101: 16.20. | B101: - Приобретение декоративного освещения для улиц города Североуральска
A102: 16.21. | B102: Всего: | C102: =SUM(C103) -> 2474.4 | D102: =SUM(D103) -> 773.4 | E102: =SUM(E103) -> 1701 | F102: 0 | G102: 0 | H102: 0 | I102: 0 | J102: 0 | K102: 5
A103: 16.22. | B103: местный бюджет | C103: =SUM(D103:J103) -> 2474.4 | D103: 773.4 | E103: 1701 | F103: 0 | G103: 0 | H103: 0 | I103: =SUM(H103) -> 0 | J103: =SUM(I103) -> 0
A104: 16.23. | B104: - Обслуживание декоративного освещения для улиц города Североуральска
A105: 16.24. | B105: Всего: | C105: =SUM(C106) -> 300 | D105: =SUM(D106) -> 0 | E105: =SUM(E106) -> 0 | F105: 0 | G105: 300 | H105: 0 | I105: 0 | J105: 0 | K105: 5
A106: 16.25. | B106: местный бюджет | C106: =SUM(D106:J106) -> 300 | D106: 0 | E106: 0 | F106: 0 | G106: 300 | H106: 0 | I106: =SUM(H106) -> 0 | J106: =SUM(I106) -> 0
A107: 16.26. | B107: - Акарицидная обработка общественных мест
A108: 16.27. | B108: Всего: | C108: =SUM(C109) -> 1053.4899 | D108: =SUM(D109) -> 92 | E108: =SUM(E109) -> 99.9 | F108: 99.9899 | G108: 100 | H108: 330.8 | I108: 0 | J108: 330.8 | K108: 14
A109: 16.28. | B109: местный бюджет | C109: =SUM(D109:J109) -> 1053.4899 | D109: 92 | E109: 99.9 | F109: 99.9899 | G109: 100 | H109: 330.8 | I109: 0 | J109: 330.8
A110: 16.29. | B110: - Приобретение грунта плодородного (земли садовой)
A111: 16.30. | B111: Всего: | C111: =SUM(C112) -> 707.2 | D111: =SUM(D112) -> 88 | E111: =SUM(E112) -> 0 | F111: 150 | G111: 50 | H111: 209.6 | I111: 0 | J111: 209.6 | K111: 11
A112: 16.31. | B112: местный бюджет | C112: =SUM(D112:J112) -> 707.2 | D112: 88 | E112: 0 | F112: 150 | G112: 50 | H112: 209.6 | I112: 0 | J112: 209.6
A113: 16.32. | B113: - Приобретение и установка металлических урн и скамеек
A114: 16.33. | B114: Всего: | C114: =SUM(C115) -> 1710.25802 | D114: =SUM(D115) -> 0 | E114: =SUM(E115) -> 0 | F114: 1710.25802 | G114: 0 | H114: 0 | I114: 0 | J114: 0 | K114: 6
A115: 16.34. | B115: местный бюджет | C115: =SUM(D115:J115) -> 1710.25802 | D115: 0 | E115: 0 | F115: 1710.25802 | G115: 0 | H115: 0 | I115: =SUM(H115) -> 0 | J115: =SUM(I115) -> 0
A116: 16.35. | B116: - Благоустройство мест общего пользования территории Североуральского городского округа
A117: 16.36. | B117: Всего: | C117: =SUM(C118) -> 9204.57377 | D117: =SUM(D118) -> 0 | E117: =SUM(E118) -> 1499 | F117: 5935.57377 | G117: 1770 | H117: 0 | I117: 0 | J117: 0 | K117: 5
A118: 16.37. | B118: местный бюджет | C118: =SUM(D118:J118) -> 9204.57377 | D118: 0 | E118: 1499 | F118: 5935.57377 | G118: 1770 | H118: 0 | I118: =SUM(H118) -> 0 | J118: =SUM(I118) -> 0
A119: 16.38. | B119: - Приобретение и установка остановочных комплексов на территории Североуральского городского округа
A120: 16.39. | B120: Всего: | C120: =SUM(C121) -> 0 | D120: =SUM(D121) -> 0 | E120: =SUM(E121) -> 0 | F120: 0 | G120: 0 | H120: 0 | I120: 0 | J120: 0 | K120: 5
A121: 16.40. | B121: местный бюджет | C121: =SUM(D121:J121) -> 0 | D121: 0 | E121: 0 | F121: 0 | G121: 0 | H121: 0 | I121: =SUM(H121) -> 0 | J121: =SUM(I121) -> 0
A122: 17. | B122: Мероприятие 7 - Регулирование численности безнадзорных животных
A123: 17.1. | B123: Всего, из них | C123: =SUM(D123:J123) -> 4777.6 | D123: =SUM(D124:D125) -> 0 | E123: =SUM(E124:E125) -> 0 | F123: 1771.9 | G123: 1113.5 | H123: 951.9 | I123: 940.3 | J123: 0 | K123: 13
A124: 17.2. | B124: местный бюджет | C124: =SUM(D124:J124) -> 946.8 | D124: 0 | E124: 0 | F124: 796.8 | G124: 150 | H124: 0 | I124: =SUM(H124) -> 0 | J124: =SUM(I124) -> 0
A125: 17.3. | B125: областной бюджет | C125: =SUM(D125:J125) -> 3830.8 | E125: 0 | F125: 975.1 | G125: 963.5 | H125: 951.9 | I125: 940.3 | J125: 0
A126: 18. | B126: Подпрограмма 2: Муниципальная программа по энергосбережению и повышению энергетической эффективности объектов Североуральского городского округа
A127: 18.1. | B127: Всего по подпрограмме 2, в том числе | C127: =SUM(D127:J127) -> 89471.16847 | D127: =SUM(D128:D129) -> 9165.5 | E127: 2961.6 | F127: 15455.86781 | G127: 16337.20066 | H127: 21775.5 | I127: 21775.5 | J127: 2000 | K127: Х
A128: 18.2. | B128: местный бюджет | C128: =SUM(D128:J128) -> 83126.76847 | D128: =SUM(D132+D178) -> 2821.1 | E128: =SUM(E132+E178) -> 2961.6 | F128: =F132+F178 -> 15455.86781 | G128: =SUM(G132+G178) -> 16337.20066 | H128: 21775.5 | I128: =SUM(I132+I178) -> 21775.5 | J128: 2000
A129: 18.3. | B129: областной бюджет | C129: =SUM(D129:J129) -> 6344.4 | D129: =SUM(D133+D179) -> 6344.4 | E129: =SUM(E133+E179) -> 0 | F129: =SUM(F133+F179) -> 0 | G129: 0 | H129: 0 | I129: 0 | J129: 0
A130: 19. | B130: 1. Капитальные вложения
A131: 19.1. | B131: Всего по направлению «Капитальные вложения», всего, в том числе | C131: =SUM(C132:C133) -> 75004.40986 | D131: 4173.6 | E131: 1420 | F131: 14122.6092 | G131: 15737.20066 | H131: 19775.5 | I131: 19775.5 | J131: 0 | K131: Х
A132: 19.2. | B132: местный бюджет | C132: =SUM(D132:J132) -> 71660.00986 | D132: =SUM(D166+D136) -> 829.2 | E132: 1420 | F132: 14122.6092 | G132: 15737.20066 | H132: 19775.5 | I132: 19775.5 | J132: 0
A133: 19.3. | B133: областной бюджет | C133: =SUM(D133:J133) -> 3344.4 | D133: 3344.4 | E133: 0 | F133: 0 | G133: 0 | H133: 0 | I133: 0 | J133: 0
A134: 20. | B134: 1.1. Бюджетные инвестиции в объекты капитального строительства
A135: 20.1. | B135: Бюджетные инвестиции в объекты капитального строительства всего, в том числе | C135: =SUM(D135:J135) -> 16859.80986 | D135: =SUM(D136:D137) -> 0 | E135: =SUM(E136:E137) -> 0 | F135: 14122.6092 | G135: 2737.20066 | H135: 0 | I135: 0 | J135: 0 | K135: Х
A136: 20.2. | B136: местный бюджет | C136: =SUM(D136:J136) -> 16859.80986 | D136: =SUM(D140+D152+D155+D159+D162) -> 0 | E136: 0 | F136: 14122.6092 | G136: 2737.20066 | H136: 0 | I136: 0 | J136: 0
A137: 20.3. | B137: областной бюджет | C137: =SUM(D137:J137) -> 0 | D137: =SUM(D141+D156+D163) -> 0 | E137: =SUM(E141+E156+E163) -> 0 | F137: 0 | G137: 0 | H137: 0 | I137: 0 | J137: 0
A138: 21. | B138: Мероприятие 3 - Закупка и установка осветительного оборудования с заменой неэффективного на энергосберегающее, в том числе замена ламп накаливания на энергосберегающие, строительство, модернизация сетей уличного освещения, проектно-сметные работы, экспертиза проектно-сметной документации
A139: 21.1. | B139: Всего, из них | C139: =SUM(C140:C141) -> 14458.20066 | D139: =SUM(D140:D141) -> 0 | E139: =SUM(E140:E141) -> 0 | F139: 12330 | G139: 2128.20066 | H139: 0 | I139: 0 | J139: 0 | K139: 28
A140: 21.2. | B140: местный бюджет | C140: =SUM(D140:J140) -> 14458.20066 | D140: 0 | E140: 0 | F140: =SUM(F148+F144) -> 12330 | G140: =SUM(G148+G144) -> 2128.20066 | H140: 0 | I140: =SUM(H140) -> 0 | J140: 0
A141: 21.3. | B141: областной бюджет | C141: =SUM(D141:J141) -> 0 | D141: 0 | E141: 0 | F141: 0 | G141: 0 | H141: 0 | I141: 0 | J141: 0
A142: 21.4. | B142: - Разработка ПСД на строительство сетей уличного освещения микрорайона Южный
A143: 21.5. | B143: Всего: | C143: =SUM(C144) -> 283.20066 | D143: 0 | E143: 0 | F143: 283.20066 | G143: 0 | H143: 0 | I143: 0 | J143: 0 | K143: 28
A144: 21.6. | B144: местный бюджет | C144: =SUM(D144:J144) -> 283.20066 | D144: 0 | E144: 0 | F144: 283.20066 | G144: 0 | H144: 0 | I144: =SUM(H144) -> 0 | J144: =SUM(I144) -> 0
A145: 21.7. | B145: областной бюджет | C145: =SUM(D145:J145) -> 0 | D145: 0 | E145: 0 | F145: 0 | G145: 0 | H145: 0 | I145: 0 | J145: 0
A146: 21.8. | B146: - Строительство сетей уличного освещения микрорайона Южный
A147: 21.9. | B147: Всего: | C147: =SUM(C148) -> 14175 | D147: 0 | E147: 0 | F147: 12046.79934 | G147: 2128.20066 | H147: 0 | I147: 0 | J147: 0 | K147: 28
A148: 21.10. | B148: местный бюджет | C148: =SUM(D148:J148) -> 14175 | D148: 0 | E148: 0 | F148: 12046.79934 | G148: 2128.20066 | H148: 0 | I148: =SUM(H148) -> 0 | J148: =SUM(I148) -> 0
A149: 21.11. | B149: областной бюджет | C149: =SUM(D149:J149) -> 0 | D149: 0 | E149: 0 | F149: 0 | G149: 0 | H149: 0 | I149: 0 | J149: 0
A150: 22. | B150: Мероприятие 5 - Разработка, экспертиза проектно-сметной документации на строительство сетей водоснабжения в Североуральском городском округе
A151: 22.1. | B151: Всего, из них | C151: =SUM(D151:J151) -> 0 | D151: =SUM(D152) -> 0 | E151: =SUM(E152) -> 0 | F151: 0 | G151: 0 | H151: 0 | I151: 0 | J151: 0 | K151: 31
A152: 22.2. | B152: местный бюджет | C152: =SUM(D152:J152) -> 0 | D152: 0 | E152: 0 | F152: 0 | G152: 0 | H152: =SUM(G152) -> 0 | I152: =SUM(H152) -> 0 | J152: =SUM(I152) -> 0
A153: 23. | B153: Мероприятие 6 - Строительство сетей водоснабжения в Североуральском городском округе
A154: 23.1. | B154: Всего, из них | C154: =SUM(C155:C156) -> 0 | D154: =SUM(D155:D156) -> 0 | E154: =SUM(E155:E156) -> 0 | F154: 0 | G154: 0 | H154: 0 | I154: 0 | J154: 0 | K154: 32
A155: 23.2. | B155: местный бюджет | C155: =SUM(D155:J155) -> 0 | D155: 0 | E155: 0 | F155: 0 | G155: 0 | H155: =SUM(G155) -> 0 | I155: 0 | J155: 0
A156: 23.3. | B156: областной бюджет | C156: =SUM(D156:J156) -> 0 | D156: 0 | E156: 0 | F156: 0 | G156: 0 | H156: 0 | I156: 0 | J156: 0
A157: 24. | B157: Мероприятие 7 - Разработка, экспертиза проектно-сметной документации на строительство котельных в Североуральском городском округе
A158: 24.1. | B158: Всего, из них | C158: =SUM(D158:J158) -> 2401.6092 | D158: =SUM(D159) -> 0 | E158: =SUM(E159) -> 0 | F158: 1792.6092 | G158: 609 | H158: 0 | I158: 0 | J158: 0 | K158: 33
A159: 24.2. | B159: местный бюджет | C159: =SUM(D159:J159) -> 2401.6092 | D159: 0 | E159: 0 | F159: 1792.6092 | G159: 609 | H159: 0 | I159: =SUM(H159) -> 0 | J159: =SUM(I159) -> 0
A160: 25. | B160: Мероприятие 8 - Строительство котельных в Североуральском городском округе
A161: 25.1. | B161: Всего, из них | C161: =SUM(C162:C163) -> 0 | D161: =SUM(D162:D163) -> 0 | E161: =SUM(E162:E163) -> 0 | F161: 0 | G161: 0 | H161: 0 | I161: 0 | J161: 0 | K161: 34
A162: 25.2. | B162: местный бюджет | C162: =SUM(D162:J162) -> 0 | D162: 0 | E162: 0 | F162: 0 | G162: 0 | H162: 0 | I162: 0 | J162: =SUM(I162) -> 0
A163: 25.3. | B163: областной бюджет | C163: =SUM(D163:J163) -> 0 | D163: 0 | E163: 0 | F163: 0 | G163: 0 | H163: =SUM(G163) -> 0 | I163: =SUM(H163) -> 0 | J163: =SUM(I163) -> 0
A164: 26. | B164: 1.2. Иные капитальные вложения
A165: 26.1. | B165: Всего, в том числе | C165: =SUM(C166:C167) -> 58144.6 | D165: 4173.6 | E165: 1420 | F165: 0 | G165: 13000 | H165: 19775.5 | I165: 19775.5 | J165: 0 | K165: Х
A166: 26.2. | B166: местный бюджет | C166: =SUM(D166:J166) -> 54800.2 | D166: =SUM(D170+D174) -> 829.2 | E166: =SUM(E170+E174) -> 1420 | F166: 0 | G166: 13000 | H166: 19775.5 | I166: 19775.5 | J166: 0
A167: 26.3. | B167: областной бюджет | C167: =SUM(D167:J167) -> 3344.4 | D167: =SUM(D171+D175) -> 3344.4 | E167: =SUM(E171+E175) -> 0 | F167: 0 | G167: 0 | H167: 0 | I167: 0 | J167: 0
A168: 27. | B168: Мероприятие 1- Реконструкция, модернизация водопроводных сетей, сетей системы водоотведения с заменой (без замены) оборудования с более высоким КПД, установка регулируемого привода, реконструкция тепловых сетей, в том числе тепловых пунктов, котельных, капитальный ремонт систем коммунального хозяйства
A169: 27.1. | B169: Всего, в том числе: | C169: =SUM(C170:C171) -> 55588.4 | D169: 3037.4 | E169: 0 | F169: 0 | G169: 13000 | H169: 19775.5 | I169: 19775.5 | J169: 0 | K169: 29
A170: 27.2. | B170: местный бюджет | C170: =SUM(D170:J170) -> 52832 | D170: 281 | E170: 0 | F170: 0 | G170: 13000 | H170: 19775.5 | I170: 19775.5 | J170: 0
A171: 27.3. | B171: областной бюджет | C171: =SUM(D171:J171) -> 2756.4 | D171: 2756.4 | E171: 0 | F171: 0 | G171: 0 | H171: =SUM(G171) -> 0 | I171: =SUM(H171) -> 0 | J171: =SUM(I171) -> 0
A172: 28. | B172: Мероприятие 3 - Закупка и установка осветительного оборудования с заменой неэффективного на энергосберегающее, в том числе замена ламп накаливания на энергосберегающие, строительство, модернизация сетей уличного освещения, проектно-сметные работы, экспертиза проектно-сметной документации
A173: 28.1. | B173: Всего, из них | C173: =SUM(C174:C175) -> 2556.2 | D173: =SUM(D174:D175) -> 1136.2 | E173: =SUM(E174:E175) -> 1420 | F173: 0 | G173: 0 | H173: 0 | I173: 0 | J173: 0 | K173: 28
A174: 28.2. | B174: местный бюджет | C174: =SUM(D174:J174) -> 1968.2 | D174: 548.2 | E174: 1420 | F174: 0 | G174: 0 | H174: 0 | I174: =SUM(H174) -> 0 | J174: 0
A175: 28.3. | B175: областной бюджет | C175: =SUM(D175:J175) -> 588 | D175: 588 | E175: 0 | F175: 0 | G175: 0 | H175: 0 | I175: 0 | J175: 0
A176: 29. | B176: 3. Прочие нужды
A177: 29.1. | B177: Всего по направлению «Прочие нужды», всего, в том числе: | C177: =SUM(D177:J177) -> 14466.75861 | D177: =SUM(D178:D179) -> 4991.9 | E177: =SUM(E178:E179) -> 1541.6 | F177: 1333.25861 | G177: 600 | H177: 2000 | I177: 2000 | J177: 2000 | K177: Х
A178: 29.2. | B178: местный бюджет | C178: =SUM(D178:J178) -> 11466.75861 | D178: =SUM(D182+D187+D191+D194) -> 1991.9 | E178: =SUM(E182+E187+E191+E194) -> 1541.6 | F178: 1333.25861 | G178: 600 | H178: 2000 | I178: 2000 | J178: 2000
A179: 29.3. | B179: областной бюджет | C179: =SUM(D179:J179) -> 3000 | D179: =SUM(D183+D188) -> 3000 | E179: =SUM(E183+E188) -> 0 | F179: 0 | G179: 0 | H179: 0 | I179: 0 | J179: 0
A180: 30. | B180: Мероприятие 2 - Оснащение зданий (строений, сооружений), находящихся в муниципальной собственности, многоквартирных жилых домов, жилых помещений, квартир приборами учета используемых энергетических ресурсов, в том числе разработка проектно-сметной документации
A181: 30.1. | B181: Всего, из них | C181: =SUM(D181:J181) -> 10050.40861 | D181: =SUM(D182:D183) -> 4200 | E181: 1100 | F181: 1250.40861 | G181: 500 | H181: 1000 | I181: 1000 | J181: 1000 | K181: 22,23,24,25,26
A182: 30.2. | B182: местный бюджет | C182: =SUM(D182:J182) -> 7050.40861 | D182: 1200 | E182: 1100 | F182: 1250.40861 | G182: 500 | H182: 1000 | I182: =SUM(H182) -> 1000 | J182: 1000
A183: 30.3. | B183: областной бюджет | C183: =SUM(D183:J183) -> 3000 | D183: 3000 | E183: =SUM(E184) -> 0 | F183: 0 | G183: 0 | H183: 0 | I183: 0 | J183: 0
A184: 30.4. | B184: федеральный бюджет | C184: =SUM(D184:J184) -> 0 | D184: 0 | E184: 0 | F184: 0 | G184: =SUM(F184) -> 0 | H184: =SUM(G184) -> 0 | I184: =SUM(H184) -> 0 | J184: =SUM(I184) -> 0
A185: 31. | B185: Мероприятие 3 - Закупка и установка осветительного оборудования с заменой неэффективного на энергосберегающее, в том числе замена ламп накаливания на энергосберегающие, строительство, модернизация сетей уличного освещения, проектно-сметные работы, экспертиза проектно-сметной документации
A186: 31.1. | B186: Всего, из них | C186: =SUM(C187:C188) -> 3591.9 | D186: =SUM(D187:D188) -> 411.9 | E186: =SUM(E187:E188) -> 180 | F186: 0 | G186: 0 | H186: 1000 | I186: 1000 | J186: 1000 | K186: 28
A187: 31.2. | B187: местный бюджет | C187: =SUM(D187:J187) -> 3591.9 | D187: 411.9 | E187: 180 | F187: 0 | G187: 0 | H187: 1000 | I187: =SUM(H187) -> 1000 | J187: 1000
A188: 31.3. | B188: областной бюджет | C188: =SUM(D188:J188) -> 0 | D188: 0 | E188: 0 | F188: 0 | G188: 0 | H188: 0 | I188: 0 | J188: 0
A189: 32. | B189: Мероприятие 4- Разработка схемы водоснабжения Североуральского городского округа
A190: 32.1. | B190: Всего, из них | C190: =SUM(D190:J190) -> 380 | D190: =SUM(D191) -> 380 | E190: =SUM(E191) -> 0 | F190: 0 | G190: 0 | H190: 0 | I190: 0 | J190: 0 | K190: 30
A191: 32.2. | B191: местный бюджет | C191: =SUM(D191:J191) -> 380 | D191: 380 | E191: 0 | F191: 0 | G191: =SUM(F191) -> 0 | H191: =SUM(G191) -> 0 | I191: =SUM(H191) -> 0 | J191: =SUM(I191) -> 0
A192: 33. | B192: Мероприятие 9- Прочие мероприятия в области энергосбережения (разработка технических заданий, топливно-энерготехнического баланса и т.п.)
A193: 33.1. | B193: Всего, из них | C193: =SUM(D193:J193) -> 444.45 | D193: =SUM(D194) -> 0 | E193: =SUM(E194) -> 261.6 | F193: 82.85 | G193: 100 | H193: 0 | I193: 0 | J193: 0 | K193: 35.36
A194: 33.2. | B194: местный бюджет | C194: =SUM(D194:J194) -> 444.45 | D194: 0 | E194: 261.6 | F194: 82.85 | G194: 100 | H194: 0 | I194: =SUM(H194) -> 0 | J194: =SUM(I194) -> 0
A195: 34. | B195: Подпрограмма 3: Развитие лесного хозяйства на территории Североуральского городского округа
A196: 34.1. | B196: Всего по подпрограмме 1, всего, в том числе | C196: =SUM(C197:C197) -> 3728.2 | D196: =SUM(D197) -> 774.1 | E196: =SUM(E197) -> 881.1 | F196: 0 | G196: 573 | H196: 500 | I196: 500 | J196: 500 | K196: Х
A197: 34.2 | B197: местный бюджет | C197: =SUM(D197:J197) -> 3728.2 | D197: =SUM(D209) -> 774.1 | E197: =SUM(E209) -> 881.1 | F197: 0 | G197: 573 | H197: 500 | I197: 500 | J197: 500
A198: 35. | B198: 1. Капитальные вложения
A199: 35.1. | B199: Всего по направлению «Капитальные вложения», всего, в том числе | C199: 0 | D199: 0 | E199: 0 | F199: 0 | G199: 0 | H199: 0 | I199: 0 | J199: 0 | K199: Х
A200: 35.2. | B200: местный бюджет | C200: 0 | D200: 0 | E200: 0 | F200: 0 | G200: 0 | H200: 0 | I200: 0 | J200: 0
A201: 36. | B201: 1.1. Бюджетные инвестиции в объекты капитального строительства
... 195 more rows

Sheet Лист2

Sheet Лист3
